bitfinex/quotes_ETHUSD_20250110
["timestamp","ask_amount","ask_price","bid_price","bid_amount"]
[1736512853645,6.1677,3306.0,3305.2,0.7926]
[1736512853842,6.1677,3306.0,3305.2,3.81805]
[1736512854043,5.37,3306.0,3305.3,0.06401908]
[1736512854357,5.37,3306.0,3305.3,3.08944908]
[1736512856156,6.1779,3306.2,3305.3,0.06401908]
[1736512856355,0.03781181,3306.1,3305.3,3.08943908]
[1736512857403,8.97165176,3306.2,3305.3,3.08943908]
[1736512857602,0.03781209,3306.1,3305.3,3.08943908]
[1736512857781,0.03781209,3306.1,3305.3,0.06401908]
[1736512858170,11.99627176,3306.2,3305.3,3.08938908]
[1736512858372,0.0378121,3306.1,3305.3,3.08938908]
[1736512858668,3.0625221,3306.1,3305.3,0.06401908]
[1736512858873,3.0248,3306.0,3305.3,0.06401908]
[1736512859082,0.03781428,3305.9,3305.3,0.06401908]
[1736512861100,3.02498,3305.8,3305.3,0.06401908]
[1736512861409,1.40107037,3305.7,3305.0,0.7623]
[1736512861617,1.40107037,3305.7,3305.4,0.0618678]
[1736512861912,3.02526,3305.5,3304.7,3.0]
[1736512862118,2.79375176,3305.6,3304.0,2.80125176]
[1736512862119,5.81923176,3305.3,3304.3,3.02627]
[1736512862265,3.02572,3305.0,3304.5,0.7707]
[1736512862473,3.06369494,3304.9,3303.7,0.7707]
[1736512862735,3.02567,3305.1,3304.1,3.79717]
[1736512863271,6.1868,3305.2,3304.1,3.79717]
[1736512863472,3.02572,3305.0,3304.1,3.79717]
[1736512864109,0.03782745,3304.9,3304.1,3.79717]
[1736512865218,5.81947176,3305.0,3304.1,3.79717]
[1736512865417,2.79375176,3305.0,3304.2,3.02642]
[1736512865575,3.69180694,3305.0,3304.1,0.7707]
[1736512865775,6.71758694,3305.0,3304.1,0.7707]
[1736512865977,0.03782747,3304.9,3304.1,0.7707]
[1736512870314,0.03782747,3304.9,3304.1,3.79721]
[1736512870740,0.03782747,3304.9,3304.1,0.7707]
[1736512870741,0.8217,3304.8,3304.1,0.7707]
[1736512870935,0.03782747,3304.7,3304.1,0.7707]
[1736512872127,2.83157923,3304.7,3303.7,0.8065]
[1736512872333,3.02609,3304.6,3303.8,3.0]
[1736512872533,0.03783056,3304.5,3303.7,0.8065]
[1736512872727,0.03783056,3304.5,3303.9,0.06290946]
[1736512872965,0.03783056,3304.5,3303.8,3.08974675]
[1736512873316,0.03783056,3304.5,3303.9,0.06290946]
[1736512873531,0.03783056,3304.6,3303.7,3.8065]
[1736512873739,0.7757,3304.5,3304.0,0.06315115]
[1736512874018,0.03783056,3304.4,3303.7,3.8334]
[1736512874234,0.03783056,3304.4,3304.1,0.06310386]
[1736512874430,0.03783056,3304.4,3303.8,3.0]
[1736512874655,0.03783056,3304.4,3304.2,0.06305658]
[1736512874814,0.03783056,3304.4,3303.8,3.0]
[1736512875014,0.03783056,3304.4,3304.3,0.06300931]
[1736512875213,0.03783056,3304.4,3303.8,3.0]
[1736512875455,0.03783056,3304.4,3304.3,0.06300931]
[1736512876055,0.03783056,3304.4,3303.7,3.8334]
[1736512876357,0.03783056,3304.4,3303.8,0.06324572]
[1736512876858,0.03783056,3304.4,3303.8,3.09002572]
[1736512877057,0.7757,3304.5,3303.9,3.02669]
[1736512877462,0.7757,3304.5,3304.0,0.06315115]
[1736512879522,0.7757,3304.5,3303.8,3.0268]
[1736512879747,0.03783054,3304.4,3303.9,0.06319843]
[1736512881223,0.7757,3304.5,3303.9,3.08989843]
[1736512882654,8.16375176,3304.7,3304.0,0.0075]
[1736512882655,5.37,3304.7,3304.0,0.0075]
[1736512882827,5.37,3304.7,3304.3,3.02634]
[1736512883026,5.37,3304.7,3304.2,0.015]
[1736512883335,0.7697,3304.6,3304.3,0.06300931]
[1736512883528,0.03782656,3304.5,3303.7,0.7839]
[1736512883869,0.03782656,3304.5,3303.8,0.06336833]
[1736512883870,3.02629,3304.4,3303.8,0.06336833]
[1736512884172,0.7697,3304.2,3303.8,0.06336833]
[1736512884335,3.02665,3304.0,3303.8,0.06336833]
[1736512884673,0.03783737,3303.9,3303.1,3.81133]
[1736512884965,0.03783737,3303.9,3303.2,3.09117854]
[1736512885122,0.752,3304.2,3303.5,3.02706]
[1736512885470,0.03783421,3304.1,3303.6,0.0636381]
[1736512886029,0.752,3304.0,3303.1,3.02742]
[1736512886224,0.03783745,3303.9,3303.7,0.0635908]
[1736512886566,0.69886037,3303.9,3303.8,0.06369682]
[1736512886768,0.69886037,3303.9,3303.1,3.02742]
[1736512886964,0.03783745,3303.9,3303.1,3.02742]
[1736512887141,0.03783745,3303.9,3303.2,0.06398061]
[1736512889374,0.03783745,3303.9,3303.2,3.02735]
[1736512889573,0.03783745,3303.9,3303.3,0.06395521]
[1736512892399,0.752,3304.0,3303.3,0.015]
[1736512892579,0.8045,3304.6,3303.9,3.02669]
[1736512892747,0.8045,3304.6,3303.8,0.763]
[1736512892943,0.8045,3304.6,3304.0,0.06363291]
[1736512893263,0.8045,3304.6,3304.1,3.02652]
[1736512893460,0.8045,3304.6,3304.2,3.02642]
[1736512893894,0.7515,3304.8,3304.3,0.06349108]
[1736512894196,0.7515,3304.8,3304.2,3.02642]
[1736512894497,0.7515,3304.8,3304.3,3.02633]
[1736512894675,0.7515,3305.1,3304.5,0.0075]
[1736512894876,0.7515,3305.1,3304.5,3.03367]
[1736512895266,0.7515,3305.1,3304.6,0.06309521]
[1736512900159,0.7515,3305.1,3304.6,3.08915521]
[1736512902607,0.8064,3305.4,3304.6,0.06309521]
[1736512903021,6.62402723,3306.1,3304.8,0.0075]
[1736512903022,8.16375176,3305.9,3304.8,0.0075]
[1736512903172,0.7681,3305.8,3304.9,3.02577]
[1736512903547,0.03781724,3305.7,3304.9,3.08872342]
[1736512903716,0.03781724,3305.7,3304.9,0.06295342]
[1736512903867,3.06289724,3305.7,3304.9,0.06295342]
[1736512904208,3.06289724,3305.7,3305.0,0.06290617]
[1736512904802,0.03781724,3305.7,3305.0,0.06290617]
[1736512905719,0.7681,3305.8,3305.0,3.08858617]
[1736512906420,0.03781725,3305.7,3305.0,0.06290617]
[1736512907604,3.55195176,3305.6,3304.7,0.7996]
[1736512907779,3.06314954,3305.5,3304.7,0.7996]
[1736512907972,3.06314954,3305.5,3304.8,0.0625365]
[1736512908176,0.55,3305.4,3304.8,0.0625365]
[1736512908519,6.57768176,3305.0,3304.1,3.02652]
[1736512908717,0.03781087,3304.9,3304.2,3.0]
[1736512909025,6.57768176,3305.0,3304.2,3.06282449]
[1736512909373,0.03782643,3304.9,3304.2,3.06282449]
[1736512909774,6.57768176,3305.0,3304.2,3.06282449]
[1736512909968,0.03782643,3304.9,3304.2,3.06282449]
[1736512910523,3.55195176,3305.0,3304.2,3.08920449]
[1736512911153,0.03782643,3304.9,3304.2,3.08920449]
[1736512912463,3.55195176,3305.0,3304.2,3.08920449]
[1736512912808,0.03782642,3304.9,3304.2,3.08920449]
[1736512913575,3.55195176,3305.0,3304.2,3.08920449]
[1736512913909,0.03782642,3304.9,3304.2,3.08920449]
[1736512915565,0.03782642,3304.9,3304.2,0.06282449]
[1736512915747,2.79375176,3304.7,3304.2,0.06282449]
[1736512915912,0.03782928,3304.6,3303.8,3.02673]
[1736512916121,0.03782928,3304.6,3303.9,0.06319842]
[1736512916754,0.03782928,3304.6,3303.9,3.08990842]
[1736512916948,0.03782928,3304.7,3303.9,3.08990842]
[1736512917263,3.84541,3304.8,3303.9,3.08990842]
[1736512917470,3.84541,3304.8,3303.9,0.06319842]
[1736512917620,0.03782928,3304.7,3303.9,0.06319842]
[1736512917820,0.03782928,3304.7,3303.8,3.02675]
[1736512918163,0.03782928,3304.7,3304.0,0.06322557]
[1736512918345,0.03782928,3304.7,3303.9,0.06327286]
[1736512918544,0.7704,3304.6,3303.9,0.06327286]
[1736512918773,0.03782929,3304.5,3303.9,0.06327286]
[1736512919988,0.7715,3304.4,3303.9,0.06327286]
[1736512920167,0.7715,3304.4,3303.6,3.02697]
[1736512920486,0.7715,3304.4,3304.0,0.06117291]
[1736512920638,0.7715,3304.4,3303.8,3.0268]
[1736512920836,0.7715,3304.4,3304.1,0.06112563]
[1736512921040,0.7715,3304.4,3303.5,0.59935081]
[1736512921041,0.7715,3304.4,3303.6,3.8178]
[1736512921282,5.37,3304.6,3304.2,0.06107835]
[1736512921445,5.37,3304.6,3304.0,3.82941]
[1736512921646,5.37,3304.6,3304.3,0.06108792]
[1736512921849,5.37,3304.6,3304.0,3.82941]
[1736512922088,5.37,3304.6,3304.4,0.06104065]
[1736512922397,5.37,3304.6,3304.5,0.06099338]
[1736512922587,5.37,3304.6,3304.0,3.82941]
[1736512922737,5.37,3304.6,3304.5,0.06099338]
[1736512922941,5.37,3304.6,3304.0,3.82941]
[1736512923156,5.37,3304.6,3304.1,0.06118248]
[1736512923657,5.37,3304.6,3304.1,3.08770248]
[1736512925242,5.37,3304.6,3304.1,0.06118248]
[1736512925943,0.7915,3304.7,3304.2,3.02641]
[1736512926241,0.7915,3304.7,3304.3,0.06100921]
[1736512926440,0.7915,3304.7,3304.3,3.08734921]
[1736512927951,6.1863,3305.0,3304.4,0.8288]
[1736512928100,6.1863,3305.0,3304.6,3.02604]
[1736512928445,6.1863,3305.0,3304.7,0.06082013]
[1736512928756,5.37,3305.0,3304.7,3.08672013]
[1736512928895,0.774,3305.3,3304.8,3.02589]
[1736512929095,0.774,3305.3,3304.9,3.02577]
[1736512929295,0.774,3305.3,3304.9,3.08649561]
[1736512929554,0.774,3305.5,3305.2,3.02553]
[1736512929701,0.7711,3306.1,3305.3,3.02539]
[1736512929920,0.7711,3306.1,3305.4,3.02531]
[1736512930259,0.7711,3306.1,3305.5,0.06000928]
[1736512930409,0.7711,3306.1,3305.6,3.02515]
[1736512930613,0.7711,3306.1,3305.6,3.08509893]
[1736512930843,0.7711,3306.6,3305.7,0.015]
[1736512931180,0.03780727,3306.5,3305.8,3.02489]
[1736512931333,0.03780727,3306.5,3305.8,3.08474446]
[1736512932561,0.03780727,3306.5,3305.8,0.05985446]
[1736512932920,0.7711,3306.6,3305.8,0.05985446]
[1736512933254,0.65191727,3306.5,3305.8,0.05985446]
[1736512933661,0.65191727,3306.5,3305.8,3.08483446]
[1736512935928,0.03780727,3306.5,3305.8,3.08483446]
[1736512936129,0.7711,3306.6,3305.8,3.84013446]
[1736512938561,0.7711,3306.6,3305.8,0.81515446]
[1736512938777,0.7711,3306.6,3305.9,3.02489]
[1736512939138,0.7711,3306.6,3306.0,3.08454]
[1736512941806,3.56485176,3306.6,3306.0,0.05976]
[1736512942108,0.0378052,3306.5,3306.0,0.05976]
[1736512942292,0.0378052,3306.5,3305.9,0.0075]
[1736512942617,3.60265697,3306.6,3306.0,0.05941033]
[1736512942962,6.62696697,3306.6,3306.0,0.05941033]
[1736512943217,6.58916176,3306.6,3305.7,0.0075]
[1736512943511,6.58916176,3306.6,3306.1,0.05936311]
[1736512943708,6.58916176,3306.6,3305.7,3.03257]
[1736512943896,6.58916176,3306.6,3306.2,0.05931588]
[1736512944219,6.58916176,3306.6,3306.3,0.05926867]
[1736512944364,0.03780726,3306.5,3306.3,0.05926867]
[1736512944708,0.7711,3306.6,3305.8,3.02498]
[1736512945063,0.03780724,3306.5,3305.9,0.05945756]
[1736512947324,0.7716,3306.4,3305.9,0.05945756]
[1736512947483,0.7716,3306.4,3305.7,0.0075]
[1736512947679,0.7716,3306.4,3306.0,0.05941033]
[1736512948010,0.80940727,3306.4,3306.1,0.05936311]
[1736512948195,0.80940727,3306.4,3305.7,3.03257]
[1736512948396,0.7716,3306.4,3306.2,0.05931588]
[1736512948591,0.7716,3306.4,3305.7,3.03257]
[1736512948824,0.7716,3306.4,3306.3,0.05926867]
[1736512949141,0.7716,3306.4,3305.8,3.02498]
[1736512949341,0.7716,3306.4,3306.3,0.05926867]
[1736512949844,0.7716,3306.4,3305.8,3.02498]
[1736512950010,0.7716,3306.4,3306.3,0.05926867]
[1736512950342,0.7716,3306.4,3305.8,3.02498]
[1736512950499,0.7716,3306.4,3306.3,0.05926867]
[1736512950699,0.7716,3306.4,3305.8,3.02498]
[1736512950916,0.7716,3306.4,3306.3,0.05926867]
[1736512951115,0.7716,3306.4,3305.8,3.02498]
[1736512951326,0.7716,3306.4,3306.3,0.05926867]
[1736512951534,0.7716,3306.4,3305.8,3.02498]
[1736512951718,0.7716,3306.4,3306.3,0.05926867]
[1736512952248,0.7716,3306.4,3305.7,0.0075]
[1736512952615,3.02482,3306.0,3305.8,0.05950479]
[1736512952802,0.81731396,3305.9,3305.1,3.0256]
[1736512953250,0.7795,3305.9,3305.2,3.0853332]
[1736512953457,0.0378148,3305.8,3305.2,3.0853332]
[1736512953621,0.7795,3305.9,3305.2,3.0853332]
[1736512954098,0.7795,3305.9,3305.3,0.015]
[1736512954300,0.7795,3306.2,3305.4,0.762]
[1736512954517,0.7795,3306.2,3305.8,3.02498]
[1736512954951,0.7795,3306.8,3305.9,0.05949253]
[1736512955098,3.80358,3306.8,3305.9,0.82149253]
[1736512955303,0.03780725,3306.7,3305.9,0.762]
[1736512955604,0.7795,3306.5,3305.7,0.015]
[1736512955951,0.7795,3306.5,3305.9,0.0075]
[1736512956335,0.7795,3306.5,3306.0,0.0594453]
[1736512961342,3.80388,3306.5,3306.0,0.0594453]
[1736512961639,0.7795,3306.5,3306.0,0.0594453]
[1736512966753,3.80384,3306.5,3306.0,0.0594453]
[1736512966978,0.8458056,3306.4,3306.0,0.0594453]
[1736512967475,3.8702356,3306.4,3306.1,0.05898288]
[1736512967782,3.8702356,3306.4,3305.7,0.015]
[1736512968337,3.8702356,3306.4,3305.8,0.05912456]
[1736512968840,0.808,3306.3,3305.8,0.05912456]
[1736512969150,0.808,3306.3,3305.6,3.0]
[1736512969748,0.808,3306.3,3305.7,0.05728658]
[1736512974092,3.83254,3306.3,3305.6,0.0075]
[1736512974291,3.83254,3306.3,3305.8,0.05724809]
[1736512974579,0.03780892,3306.2,3305.6,0.0075]
[1736512974783,0.03780892,3306.2,3305.9,0.05720086]
[1736512974784,0.7579,3306.1,3305.9,0.05720086]
[1736512975101,0.7579,3305.6,3304.8,0.7568]
[1736512975303,3.02514,3305.7,3304.5,4.39440282]
[1736512975304,0.03781882,3305.5,3304.5,4.39440282]
[1736512975486,0.7503,3305.4,3304.6,3.02607]
[1736512975687,0.03782073,3305.3,3304.6,3.02607]
[1736512976555,0.7862,3305.2,3304.6,3.02607]
[1736512977757,0.7862,3305.2,3304.7,0.05427562]
[1736512980913,0.7862,3305.2,3304.6,0.0075]
[1736512981201,0.7862,3305.2,3304.8,0.05422836]
[1736512981371,0.7862,3305.2,3304.7,0.05427562]
[1736512981567,5.81946176,3305.0,3304.9,0.0541811]
[1736512981766,5.81946176,3305.0,3303.9,3.02664]
[1736512981767,3.79271,3304.9,3304.8,0.05243386]
[1736512982070,3.02594,3304.8,3304.0,3.0075]
[1736512982400,0.03782763,3304.7,3304.0,3.0075]
[1736512982622,0.03782763,3304.7,3304.1,0.04958027]
[1736512983623,0.7618,3304.6,3304.1,0.04958027]
[1736512986923,0.8133,3304.3,3304.1,0.04958027]
[1736512987118,3.87758181,3304.2,3304.1,0.04958027]
[1736512987329,0.8133,3304.1,3303.0,3.80363]
[1736512987514,3.8401,3303.9,3303.0,0.7761]
[1736512987818,0.03783717,3303.8,3303.1,0.04866144]
[1736512988021,0.7653,3303.7,3303.1,0.04866144]
[1736512988407,0.7653,3303.7,3303.0,0.0075]
[1736512988577,0.7653,3303.7,3303.1,0.0488534]
[1736512989130,0.7653,3303.4,3303.1,0.0488534]
[1736512989621,0.7653,3303.4,3303.2,0.04880609]
[1736512989829,0.7653,3303.9,3303.0,0.8191]
[1736512989977,1.47887118,3303.9,3303.0,0.8191]
[1736512990177,3.02684,3303.8,3303.0,0.8191]
[1736512990524,1.47887118,3303.9,3303.1,0.0488534]
[1736512991098,3.02682,3303.8,3303.1,0.0488534]
[1736512992225,0.03784049,3303.7,3303.1,0.0488534]
[1736512992435,3.02682,3303.8,3303.1,0.0488534]
[1736512993583,0.03784049,3303.7,3303.1,0.0488534]
[1736512994327,3.02719,3303.4,3303.1,0.0488534]
[1736512994536,0.03784448,3303.3,3303.1,0.0488534]
[1736512994819,0.828,3303.2,3302.8,3.55559627]
[1736512995021,0.0378445,3303.1,3302.8,3.55559627]
[1736512995391,3.0653545,3303.1,3302.8,3.55559627]
[1736512995927,0.0378445,3303.1,3302.8,3.55559627]
[1736512996099,3.85564,3302.9,3302.8,3.55559627]
[1736512996624,0.828,3302.9,3302.8,3.55559627]
[1736512997588,0.8003,3303.1,3302.8,3.55559627]
[1736513002599,0.83814453,3303.1,3302.8,3.55559627]
[1736513003193,0.8003,3303.1,3302.8,3.55559627]
[1736513004138,3.82776,3303.1,3302.8,3.55559627]
[1736513004311,0.03784751,3303.0,3302.8,3.55559627]
[1736513004489,0.03784751,3303.0,3302.9,0.0482641]
[1736513004695,0.03784751,3303.0,3302.8,3.55559627]
[1736513006534,0.8003,3303.1,3302.8,3.55559627]
[1736513006841,0.0378475,3303.0,3302.9,0.04830775]
[1736513009640,6.1703,3303.1,3302.9,0.04830775]
[1736513009863,0.03784746,3303.0,3302.9,0.04830775]
[1736513010156,6.1703,3303.1,3302.9,0.04830775]
[1736513010538,0.03784748,3303.0,3302.9,0.04830775]
[1736513011618,6.1703,3303.1,3302.9,0.04830775]
[1736513011959,0.03784747,3303.0,3302.9,0.04830775]
[1736513016720,1.70533739,3303.0,3302.9,0.04830775]
[1736513017051,4.73288739,3303.0,3302.8,3.55559627]
[1736513017864,1.70533739,3303.0,3302.8,3.55559627]
[1736513018048,0.80514747,3303.0,3302.8,3.55559627]
[1736513018252,0.80514747,3303.0,3302.9,0.04828591]
[1736513018557,3.83269747,3303.0,3302.9,0.04828591]
[1736513018715,3.83269747,3303.0,3302.8,3.55559627]
[1736513019157,3.83269747,3303.0,3302.9,0.04828591]
[1736513019533,3.83269747,3303.0,3302.8,3.55559627]
[1736513019866,3.83269747,3303.0,3302.9,0.04828591]
[1736513020363,3.83269747,3303.0,3302.8,3.55559627]
[1736513021061,3.83269747,3303.0,3302.9,0.04828591]
[1736513021570,3.83269747,3303.0,3302.8,3.55559627]
[1736513021947,3.83269747,3303.0,3302.9,0.04838198]
[1736513022349,3.83269747,3303.0,3302.8,3.55559627]
[1736513022651,3.83269747,3303.0,3302.9,0.04838198]
[1736513022966,3.83269747,3303.0,3302.8,3.55559627]
[1736513023337,3.83269747,3303.0,3302.9,0.04838198]
[1736513023650,3.83269747,3303.0,3302.8,3.55559627]
[1736513023814,3.83269747,3303.0,3302.9,0.04838198]
[1736513024019,3.83269747,3303.0,3302.8,3.55559627]
[1736513024220,3.83269747,3303.0,3302.9,0.04838198]
[1736513024419,3.83269747,3303.0,3302.8,3.55559627]
[1736513024651,3.83269747,3303.0,3302.9,0.04838198]
[1736513024861,3.83269747,3303.0,3302.8,3.55559627]
[1736513025065,3.83269747,3303.0,3302.9,0.04838198]
[1736513025669,3.83269747,3303.0,3302.8,3.55559627]
[1736513025836,0.7673,3303.0,3302.8,3.55559627]
[1736513026170,0.7673,3303.0,3302.9,0.04838198]
[1736513027565,2.55099357,3303.0,3302.9,0.04838198]
[1736513027765,10.36069618,3303.0,3302.9,0.04838198]
[1736513027981,10.36069618,3303.0,3302.8,3.55559627]
[1736513029283,0.03784867,3302.9,3302.8,3.55559627]
[1736513030982,10.36069618,3303.0,3302.8,4.17109377]
[1736513031281,10.36069618,3303.0,3302.9,0.04838198]
[1736513038418,10.91069618,3303.0,3302.9,0.04838198]
[1736513038773,3.57764,3302.9,3302.8,3.55559627]
[1736513038974,7.80307611,3302.9,3302.8,3.55559627]
[1736513039243,7.76522538,3302.9,3302.8,3.55559627]
[1736513042878,13.13522538,3302.9,3302.8,3.55559627]
[1736513044251,13.91972538,3302.9,3302.8,3.55559627]
[1736513051369,13.92722538,3302.9,3302.8,3.55559627]
[1736513051599,13.92722538,3302.9,3301.5,0.7965]
[1736513051600,8.39833,3302.2,3301.5,0.7965]
[1736513051807,3.06623947,3302.1,3301.5,0.7965]
[1736513052117,0.03785947,3302.1,3301.6,0.04772915]
[1736513052282,3.06623947,3302.1,3301.6,0.04772915]
[1736513052868,0.03785947,3302.1,3301.6,0.04772915]
[1736513053108,0.03785948,3302.1,3301.7,0.8194]
[1736513053318,5.37,3302.2,3301.7,0.86733488]
[1736513053616,0.03785592,3302.1,3301.7,0.86733488]
[1736513054484,0.03785593,3302.1,3301.7,0.86733488]
[1736513055102,5.37,3302.2,3301.7,0.86733488]
[1736513055268,5.37,3302.2,3301.8,0.8302]
[1736513055474,5.37,3302.2,3302.1,3.85857]
[1736513055724,6.2015,3303.3,3302.3,0.8302]
[1736513056023,0.0378446,3303.2,3302.7,0.8302]
[1736513056386,0.0378446,3303.2,3302.8,0.04755814]
[1736513056775,0.0378446,3303.2,3302.7,0.8302]
[1736513056975,0.0378446,3303.2,3302.9,0.04751082]
[1736513057175,0.0378446,3303.2,3302.7,0.8302]
[1736513057417,5.37,3303.3,3303.0,0.04746351]
[1736513057622,5.37,3303.3,3302.9,0.7891]
[1736513057917,3.80292,3303.8,3303.0,0.04746351]
[1736513058157,3.80292,3303.8,3303.1,0.7891]
[1736513058455,3.80292,3303.8,3303.1,0.8365162]
[1736513058611,3.02682,3303.8,3303.1,0.8365162]
[1736513058808,0.03784092,3303.7,3303.1,0.8365162]
[1736513059013,0.03784092,3303.7,3303.1,0.7891]
[1736513059215,0.03784092,3303.7,3303.2,0.04736889]
[1736513059415,5.37,3303.9,3303.2,0.04736889]
[1736513059647,5.37,3303.9,3303.3,0.8158]
[1736513059814,0.03783761,3303.8,3303.3,0.8158]
[1736513060015,0.03783761,3303.8,3303.4,0.04727428]
[1736513063056,3.02704,3303.6,3303.4,0.04727428]
[1736513063260,0.03784272,3303.5,3303.4,0.04727428]
[1736513063464,0.03784272,3303.5,3302.9,0.7906]
[1736513063612,0.03784272,3303.5,3303.4,0.04727428]
[1736513063813,0.03784272,3303.5,3302.9,0.7906]
[1736513064245,0.03784272,3303.5,3303.0,0.04746351]
[1736513071244,3.06494272,3303.5,3303.0,0.04746351]
[1736513072363,9.17224,3303.2,3303.0,0.04746351]
[1736513072544,0.03784669,3303.1,3302.4,4.35522998]
[1736513072725,8.39744,3303.2,3303.1,0.04704977]
[1736513072931,5.37,3303.2,3302.5,3.83159]
[1736513073161,5.37,3303.2,3303.1,0.04704977]
[1736513073343,5.37,3303.2,3302.5,3.83159]
[1736513073647,5.37,3303.2,3303.1,0.04704977]
[1736513073846,5.37,3303.2,3302.7,3.02782]
[1736513074172,5.37,3303.2,3303.1,0.8036]
[1736513074673,5.37,3303.2,3303.1,0.85064977]
[1736513075182,5.37,3303.2,3303.1,3.87809977]
[1736513075737,0.03784058,3303.9,3303.1,3.87809977]
[1736513076042,3.06457058,3303.9,3303.1,0.85064977]
[1736513076244,3.027,3303.6,3303.1,0.85064977]
[1736513076447,0.03784146,3303.5,3303.1,0.85064977]
[1736513076877,0.03784146,3303.5,3303.1,0.04704977]
[1736513076878,9.15606,3303.2,3303.1,0.04704977]
[1736513077181,10.40604118,3303.2,3302.3,3.78907]
[1736513077363,9.15606,3303.2,3303.1,0.04664843]
[1736513077532,9.15606,3303.2,3302.3,3.78907]
[1736513077733,9.15606,3303.2,3303.1,0.04664843]
[1736513077948,9.15606,3303.2,3302.3,3.78907]
[1736513078273,9.15606,3303.2,3303.1,0.04664843]
[1736513078480,9.15606,3303.2,3302.3,3.78907]
[1736513078845,9.15606,3303.2,3302.4,0.04712796]
[1736513080974,6.1287,3303.2,3302.4,3.07521796]
[1736513082954,5.37,3303.2,3302.5,0.7759]
[1736513083158,5.37,3303.2,3302.5,0.81556348]
[1736513083403,5.37,3303.2,3302.7,3.02775]
[1736513083699,5.37,3303.2,3302.8,0.8078997]
[1736513085976,5.37,3303.2,3302.8,3.8355597]
[1736513086179,5.37,3303.2,3302.9,0.0075]
[1736513086491,5.37,3303.2,3302.9,0.05445239]
[1736513087287,0.03784102,3303.7,3302.9,0.05445239]
[1736513087288,0.03784102,3303.7,3303.0,3.02753]
[1736513087491,0.03784102,3303.7,3302.9,0.05445239]
[1736513087726,0.8063,3303.6,3303.1,0.04685776]
[1736513087996,2.79375176,3303.4,3303.0,0.04690507]
[1736513088317,3.06520674,3303.3,3303.2,0.04681045]
[1736513088467,0.7941,3303.2,3301.8,0.0075]
[1736513088679,0.83195057,3303.1,3301.9,3.82669]
[1736513088975,0.8266,3303.0,3301.9,0.84264764]
[1736513089150,3.02782,3302.8,3302.0,0.0075]
[1736513089351,0.03785014,3302.7,3302.0,0.05197445]
[1736513093583,3.02817,3302.4,3302.0,0.04447445]
[1736513093787,3.06604469,3302.3,3301.6,0.8303]
[1736513094101,3.06604469,3302.3,3302.1,0.04307855]
[1736513094309,3.06604469,3302.3,3301.6,0.8303]
[1736513094462,3.06604469,3302.3,3301.6,1.44275469]
[1736513094662,3.06604469,3302.3,3301.7,0.04326792]
[1736513096023,0.03785469,3302.3,3301.7,0.04326792]
[1736513096200,3.06595469,3302.4,3301.7,0.04326792]
[1736513096911,0.8072,3302.3,3301.7,0.04326792]
[1736513097122,3.0661486,3302.2,3301.7,0.04326792]
[1736513097312,1.3572,3302.1,3301.7,0.04326792]
[1736513097516,3.83585,3301.8,3301.0,0.7564]
[1736513097829,0.03786343,3301.7,3301.1,0.0424811]
[1736513098028,0.8072,3301.8,3301.1,0.0424811]
[1736513098735,0.0378626,3301.7,3301.1,0.0424811]
[1736513100203,0.8072,3301.8,3301.1,0.0424811]
[1736513100587,0.8072,3301.8,3301.1,3.0717611]
[1736513101002,0.03786093,3301.7,3301.1,0.0424811]
[1736513101205,2.79375176,3301.6,3301.1,0.0424811]
[1736513101391,3.02903,3301.4,3300.7,0.7963]
[1736513101592,0.03786654,3301.3,3300.7,0.7963]
[1736513101820,0.03786654,3301.3,3300.8,0.04262322]
[1736513102026,0.03786654,3301.3,3300.7,0.7963]
[1736513102218,0.03786654,3301.3,3300.9,0.04123351]
[1736513102431,0.03786654,3301.3,3300.7,0.7963]
[1736513102695,0.03786558,3301.5,3300.7,0.7963]
[1736513102894,0.03786558,3301.5,3300.8,0.04128088]
[1736513103475,0.03786558,3301.5,3300.8,3.07084088]
[1736513103746,0.03786558,3301.5,3300.8,0.04128088]
[1736513103947,0.7887,3301.6,3300.9,0.0075]
[1736513104146,3.06634228,3302.0,3301.1,3.85886]
[1736513104347,0.7701,3301.9,3301.1,3.85886]
[1736513104646,0.7701,3301.9,3301.2,0.0410914]
[1736513104811,0.7701,3302.1,3301.3,3.02909]
[1736513105007,0.0378597,3302.0,3301.3,3.07013404]
[1736513105212,6.1401,3302.1,3301.5,3.02891]
[1736513105416,0.7809,3302.5,3301.5,0.8082]
[1736513105613,0.7809,3302.5,3301.7,3.02872]
[1736513106039,0.7809,3302.5,3301.8,0.04080727]
[1736513106751,0.7809,3302.5,3301.9,0.7724]
[1736513107052,0.7809,3302.5,3301.9,0.81315993]
[1736513109269,0.03785362,3302.4,3301.9,0.04075993]
[1736513110258,0.7729,3302.3,3301.9,0.04075993]
[1736513110419,0.7729,3302.0,3301.9,0.04075993]
[1736513110618,0.81075966,3302.0,3301.1,0.0075]
[1736513110860,3.83922966,3302.0,3301.9,0.03942731]
[1736513111060,4.22315263,3302.0,3301.1,3.03676]
[1736513111362,4.22315263,3302.0,3301.2,0.03975879]
[1736513112060,0.8211,3301.7,3301.2,0.03975879]
[1736513112216,0.8211,3301.5,3301.2,0.03975879]
[1736513112422,0.03786513,3301.4,3301.2,0.03975879]
[1736513112678,0.8211,3301.5,3300.7,0.8156]
[1736513112835,0.821,3301.8,3301.4,3.029]
[1736513113019,0.821,3302.1,3301.3,0.015]
[1736513113219,0.821,3302.1,3301.5,3.06851671]
[1736513113568,0.821,3302.1,3301.6,0.03956936]
[1736513115365,0.821,3302.1,3301.5,0.0075]
[1736513115561,0.821,3302.1,3301.7,0.039522]
[1736513115723,0.821,3302.1,3301.6,0.03956936]
[1736513116567,0.7765,3302.3,3301.7,0.7736]
[1736513116736,0.7765,3302.3,3301.8,3.02857]
[1736513116938,0.7765,3302.3,3301.9,0.03942731]
[1736513119847,0.7765,3302.3,3301.7,0.7736]
[1736513120063,0.7765,3302.3,3302.0,0.03944973]
[1736513120246,0.7765,3302.3,3301.7,0.7736]
[1736513121176,0.7765,3302.3,3301.8,0.03954442]
[1736513121526,0.7765,3302.3,3301.7,0.7736]
[1736513121729,0.7765,3302.3,3301.8,0.03954442]
[1736513121957,0.7765,3302.3,3301.7,3.80231]
[1736513122213,0.7765,3302.3,3301.9,0.03949707]
[1736513122361,0.7765,3302.3,3301.8,0.03954442]
[1736513122579,0.7765,3302.3,3302.0,0.03944973]